bitfinex-derivatives/quotes_ETHF0:USTF0_20241231
["timestamp","ask_amount","ask_price","bid_price","bid_amount"]
[1735663912678,3.2078,3413.2,3413.1,0.29351]
[1735663913280,3.50131,3413.2,3413.1,0.29351]
[1735663914381,3.2078,3413.2,3413.1,0.29351]
[1735663914679,8.49019816,3413.9,3413.1,0.29351]
[1735663914680,0.29347,3413.8,3413.7,0.29346]
[1735663914978,8.03679816,3413.9,3413.3,4.73579938]
[1735663915280,3.2078,3414.2,3413.4,0.73371]
[1735663915281,8.47359816,3414.1,3413.4,0.73371]
[1735663915486,0.29344,3414.0,3413.9,0.29344]
[1735663921582,1.1704,3414.1,3413.3,0.4197]
[1735663921790,0.29348,3413.6,3413.5,0.29348]
[1735663922587,0.29347,3413.7,3413.6,0.29346]
[1735663923693,0.29348,3413.6,3413.5,0.29348]
[1735663924494,0.29348,3413.6,3412.4,4.59704674]
[1735663924495,0.73367,3413.7,3412.7,0.73387]
[1735663924687,0.29352,3413.1,3413.0,0.29351]
[1735663924887,3.2078,3413.4,3412.8,1.68286924]
[1735663925185,1.62721,3413.3,3413.2,0.2935]
[1735663925590,1.3337,3413.3,3412.9,2.35835938]
[1735663925787,0.29352,3413.1,3413.0,0.29352]
[1735663925984,1.3337,3413.3,3412.9,2.35835938]
[1735663926195,0.29352,3413.2,3413.1,0.29351]
[1735663926791,0.29352,3413.1,3413.0,0.29352]
[1735663926989,1.3337,3413.3,3412.8,1.224]
[1735663927189,0.29352,3413.1,3413.0,0.29351]
[1735663927490,1.3337,3413.3,3412.7,0.457]
[1735663927691,0.29358,3412.4,3412.3,0.29358]
[1735663928289,0.434,3412.7,3412.1,0.4294]
[1735663928488,0.29359,3412.3,3412.2,0.29359]
[1735663928694,0.29358,3412.4,3412.3,0.29358]
[1735663929594,0.29359,3412.2,3412.1,0.723]
[1735663930185,0.8822,3412.6,3412.1,0.4294]
[1735663930388,0.29359,3412.3,3412.2,0.29358]
[1735663930588,0.29357,3412.5,3412.4,0.29357]
[1735663930789,1.17577,3412.6,3412.5,0.29357]
[1735663931291,0.8822,3412.6,3412.5,0.29357]
[1735663931491,3.50134,3412.8,3412.7,0.29355]
[1735663931896,0.29354,3412.9,3412.8,0.29354]
[1735663932192,1.2839,3413.2,3412.4,2.35835938]
[1735663932498,1.57741,3413.2,3413.1,0.29352]
[1735663932795,1.2839,3413.2,3413.1,0.29352]
[1735663933091,1.2839,3413.2,3412.8,0.8607]
[1735663933393,0.29352,3413.0,3412.9,0.29353]
[1735663933792,1.2839,3413.2,3412.8,0.8607]
[1735663933997,0.29352,3413.1,3413.0,0.29352]
[1735663934390,1.57741,3413.2,3412.9,0.29353]
[1735663934593,1.57741,3413.2,3413.1,0.29352]
[1735663934793,1.57741,3413.2,3413.0,0.29353]
[1735663934794,0.29352,3413.1,3413.0,0.29353]
[1735663935089,1.2839,3413.2,3412.8,0.42]
[1735663935298,3.64225938,3413.2,3412.3,0.4634]
[1735663935492,3.64225938,3413.2,3412.2,3.2078]
[1735663935493,0.73387,3412.8,3412.2,3.2078]
[1735663935689,0.29359,3412.3,3412.2,3.2078]
[1735663935898,0.29359,3412.3,3412.0,1.649]
[1735663936097,0.29359,3412.3,3412.2,0.2936]
[1735663936400,1.3519,3412.4,3412.1,0.2936]
[1735663936696,1.3519,3412.4,3412.2,0.29359]
[1735663936897,0.29359,3412.3,3412.2,0.29359]
[1735663937097,1.3519,3412.4,3412.0,1.649]
[1735663937399,2.08586,3412.4,3411.7,0.4634]
[1735663937595,2.08586,3412.4,3411.7,0.29363]
[1735663937596,0.73397,3412.3,3411.7,0.29363]
[1735663937799,0.29363,3411.8,3411.7,0.29363]
[1735663938497,3.09232938,3412.3,3411.4,0.4634]
[1735663938807,0.29365,3411.6,3411.5,0.29365]
[1735663939297,0.4491,3411.6,3411.3,0.425]
[1735663939495,0.29368,3411.3,3411.2,0.29368]
[1735663939695,0.73066,3411.5,3411.4,0.29366]
[1735663940602,0.4491,3411.6,3411.5,0.29366]
[1735663940900,0.29366,3411.5,3411.4,0.29366]
[1735663941403,0.74275,3411.6,3411.5,0.29366]
[1735663941621,0.29366,3411.5,3411.4,0.29366]
[1735663941901,0.29368,3411.3,3411.2,0.29368]
[1735663942595,0.4491,3411.6,3410.8,0.4349]
[1735663942800,0.29366,3411.5,3411.4,0.29366]
[1735663942990,0.74275,3411.6,3411.5,0.29366]
[1735663943195,0.29366,3411.5,3411.4,0.29366]
[1735663943396,0.29366,3411.5,3411.0,0.73425]
[1735663943600,0.29366,3411.5,3411.3,0.29367]
[1735663943997,0.29366,3411.5,3411.4,0.29366]
[1735663944200,0.74275,3411.6,3411.5,0.29366]
[1735663944702,0.29366,3411.5,3411.4,0.29366]
[1735663944903,0.29366,3411.5,3411.2,0.29367]
[1735663945098,0.75377,3411.4,3411.2,0.29367]
[1735663945402,0.29368,3411.3,3411.2,0.29368]
[1735663945702,0.75377,3411.4,3411.3,0.29367]
[1735663946797,0.4601,3411.4,3411.3,0.29367]
[1735663947998,0.4491,3411.6,3411.5,0.29366]
[1735663948502,0.74275,3411.6,3411.5,0.29366]
[1735663948693,0.4491,3411.6,3411.5,0.29366]
[1735663948898,3.50144,3411.7,3411.6,0.29365]
[1735663949096,3.2078,3411.7,3411.0,0.73424]
[1735663949299,0.29365,3411.6,3411.5,0.29365]
[1735663949503,3.2078,3411.7,3410.9,5.56615938]
[1735663949699,3.50144,3411.7,3411.6,0.29365]
[1735663950807,0.29365,3411.6,3411.5,0.29365]
[1735663951007,3.50144,3411.7,3411.6,0.29365]
[1735663951405,3.2078,3411.7,3411.6,0.29365]
[1735663951599,0.4207,3412.1,3411.5,2.35835938]
[1735663951807,3.2078,3412.2,3412.1,0.2936]
[1735663953100,3.2078,3412.2,3411.6,0.8667]
[1735663953305,0.71751,3412.1,3412.0,0.29361]
[1735663953510,3.2078,3412.2,3411.6,0.8667]
[1735663953707,3.2078,3412.2,3412.1,0.2936]
[1735663954009,0.29364,3411.8,3411.7,0.29364]
[1735663954207,0.73402,3412.1,3411.6,0.72474]
[1735663954512,0.29368,3411.3,3411.2,0.29368]
[1735663955306,0.29367,3411.4,3411.3,0.29367]
[1735663955505,0.29366,3411.5,3411.4,0.29366]
[1735663956810,0.4456,3411.6,3411.0,1.61834]
[1735663957010,0.73925,3411.6,3411.5,0.29366]
[1735663957615,0.4456,3411.6,3411.5,0.29366]
[1735663957805,0.74235,3411.7,3411.6,0.29365]
[1735663958112,0.4487,3411.7,3411.6,0.29365]
[1735663959407,0.4487,3411.7,3411.0,1.3142]
[1735663959611,0.29367,3411.4,3411.3,0.29367]
[1735663960006,0.4487,3411.7,3411.0,1.61834]
[1735663960206,0.29365,3411.6,3411.5,0.29365]
[1735663961516,0.4487,3411.7,3411.0,0.8841]
[1735663962008,0.29368,3411.4,3411.3,0.29367]
[1735663962914,0.29366,3411.5,3411.4,0.29366]
[1735663965403,0.29365,3411.6,3411.5,0.29365]
[1735663967209,3.2078,3411.8,3411.2,0.73419]
[1735663967409,0.29365,3411.7,3411.6,0.29364]
[1735663968611,3.2078,3411.8,3411.1,0.73423]
[1735663968811,0.29368,3411.3,3411.2,0.29367]
[1735663969005,0.29368,3411.3,3411.0,0.8841]
[1735663969006,3.50147,3411.4,3411.3,0.29367]
[1735663970617,3.2078,3411.4,3411.3,0.29367]
[1735663971921,0.29365,3411.6,3411.5,0.29365]
[1735663972916,0.29364,3411.7,3411.6,0.29364]
[1735663973115,0.29365,3411.6,3411.5,0.29365]
[1735663974418,0.29365,3411.7,3411.6,0.29364]
[1735663975121,3.2078,3411.8,3411.7,0.29364]
[1735663975518,3.50143,3411.8,3411.7,0.29364]
[1735663976421,0.29365,3411.6,3411.5,0.29365]
[1735663977922,2.35835938,3411.6,3411.0,0.8841]
[1735663978125,0.29369,3411.2,3411.0,1.17779]
[1735663978423,3.2078,3411.3,3411.0,0.8841]
[1735663978617,3.2078,3411.9,3411.0,0.8841]
[1735663978812,3.2078,3411.9,3411.8,0.29363]
[1735663979217,3.2078,3412.3,3412.2,0.2936]
[1735663980224,8.03679816,3412.6,3412.5,0.29357]
[1735663980425,3.50136,3412.7,3412.6,0.29356]
[1735663981224,0.29356,3412.6,3412.5,0.29357]
[1735663981425,0.29357,3412.5,3412.4,0.29358]
[1735663981927,3.2078,3412.7,3412.4,0.29358]
[1735663982115,0.29357,3412.6,3412.4,0.29358]
[1735663982319,0.29357,3412.6,3412.5,0.29357]
[1735663982728,0.29357,3412.6,3412.4,0.29357]
[1735663982925,3.2078,3412.7,3412.1,0.73402]
[1735663983230,0.29356,3412.6,3412.5,0.29357]
[1735663983530,0.29356,3412.6,3412.0,0.4317]
[1735663983729,0.29356,3412.6,3412.4,0.29358]
[1735663983926,0.29356,3412.6,3412.0,0.4317]
[1735663984126,0.29356,3412.6,3412.4,0.29357]
[1735663984427,0.29357,3412.5,3412.4,0.29357]
[1735663984626,3.2078,3412.7,3411.9,0.9158]
[1735663984816,3.2078,3412.7,3412.4,0.29357]
[1735663985017,0.29357,3412.6,3412.5,0.29357]
[1735663985227,0.29357,3412.6,3412.4,0.29357]
[1735663985428,3.2078,3412.7,3412.0,0.73404]
[1735663985629,3.50136,3412.7,3412.6,0.29356]
[1735663985821,3.2078,3412.7,3412.5,0.29356]
[1735663986018,0.29356,3412.6,3412.4,0.29358]
[1735663986329,3.50135,3412.7,3412.6,0.29356]
[1735663986630,3.2078,3412.7,3412.6,0.29356]
[1735663986831,0.29356,3412.6,3412.5,0.75117]
[1735663987127,11.24459816,3412.7,3411.7,3.2078]
[1735663987429,0.29358,3412.5,3412.3,0.29358]
[1735663987631,0.29358,3412.4,3412.2,0.29359]
[1735663988428,11.24459816,3412.7,3412.2,0.29359]
[1735663988629,0.29359,3412.3,3412.2,0.29359]
[1735663989425,0.2936,3412.1,3412.0,0.4285]
[1735663990129,0.2936,3412.1,3412.0,0.72211]
[1735663990331,0.2936,3412.1,3412.0,0.4285]
[1735663990527,0.2936,3412.1,3412.0,0.72211]
[1735663991125,0.2936,3412.1,3412.0,0.4285]
[1735663992030,0.4406,3412.1,3411.7,3.50143]
[1735663992223,0.29362,3412.0,3411.9,0.29361]
[1735663992828,0.29364,3411.8,3411.7,0.29364]
[1735663993135,0.29362,3412.0,3411.9,0.29361]
[1735663993626,0.4406,3412.1,3411.2,3.2078]
[1735663993829,2.79895938,3412.1,3411.2,4.8836]
[1735663994033,0.29365,3411.6,3411.5,0.29365]
[1735663997829,0.29367,3411.4,3411.3,0.29366]
[1735663999329,0.29366,3411.5,3411.4,0.29366]
[1735664000229,0.29364,3411.8,3411.7,0.29363]
[1735664000738,0.29366,3411.6,3411.2,0.4528]
[1735664000934,0.73411,3411.7,3410.5,5.03384674]
[1735664001133,0.8904,3411.5,3410.9,0.4466]
[1735664001334,0.29367,3411.4,3411.3,0.29367]
[1735664001830,0.75127,3411.4,3411.3,0.29367]
[1735664002240,0.4576,3411.4,3411.3,0.29367]
[1735664002931,0.75127,3411.4,3411.3,0.29367]
[1735664003133,0.29369,3411.2,3411.1,0.29368]
[1735664003735,0.33403708,3411.2,3411.1,0.29368]
[1735664005340,0.04034708,3411.2,3411.1,0.29368]
[1735664005837,0.33402708,3411.2,3411.1,0.29368]
[1735664006033,0.04034708,3411.2,3411.1,0.29368]
[1735664009043,0.05192956,3411.2,3411.1,0.29369]
[1735664009838,0.34560956,3411.2,3411.1,0.29369]
[1735664010141,0.05192956,3411.2,3411.1,0.29369]
[1735664018547,0.34560956,3411.2,3411.1,0.29369]
[1735664018749,0.05192956,3411.2,3411.1,0.29369]
[1735664019146,0.05192956,3411.2,3411.1,2.65204938]
[1735664019751,0.05192956,3411.2,3411.1,3.11111499]
[1735664024153,0.05192956,3411.2,3411.1,3.48367235]
[1735664025665,0.05192956,3411.2,3411.1,3.11111499]
[1735664025951,0.8561,3412.0,3411.1,8.53610802]
[1735664026147,0.4355,3412.2,3412.1,0.2936]
[1735664027356,0.7291,3412.2,3412.1,0.2936]
[1735664028146,0.4355,3412.2,3412.1,0.2936]
[1735664028354,8.03679816,3412.6,3412.5,0.29357]
[1735664029251,3.2078,3412.7,3412.5,0.45895419]
[1735664029456,3.2078,3412.7,3412.6,0.29356]
[1735664031650,3.50135,3412.7,3412.6,0.29356]
[1735664032455,0.29358,3412.5,3412.4,0.29357]
[1735664032650,0.29357,3412.6,3412.5,0.29356]
[1735664032952,0.29359,3412.4,3412.3,0.29358]
[1735664033550,0.29359,3412.4,3411.9,5.62235]
[1735664033551,6.30005938,3412.7,3411.9,3.2078]
[1735664033758,0.29363,3412.0,3411.9,0.29361]
[1735664033953,4.5259,3412.3,3411.6,0.73413]
[1735664034151,0.29361,3412.2,3412.1,0.2936]
[1735664035357,1.61169,3412.3,3412.2,0.2936]
[1735664038548,4.5259,3412.3,3411.8,0.73407]
[1735664038746,0.29361,3412.2,3412.1,0.2936]
[1735664039353,4.5259,3412.3,3411.6,0.73412]
[1735664039555,0.29362,3412.0,3411.9,0.29361]
[1735664040764,4.5259,3412.3,3411.6,0.73412]
[1735664040956,4.5259,3412.3,3412.1,0.2936]
[1735664040957,0.29361,3412.2,3412.1,0.2936]
[1735664041559,0.29362,3412.1,3412.0,0.2936]
[1735664041758,0.2936,3412.2,3412.1,0.2936]
[1735664041954,0.29365,3411.7,3411.6,0.29364]
[1735664042156,0.73408,3411.8,3411.0,3.6708]
[1735664042358,0.29369,3411.3,3411.2,0.29367]
[1735664043072,0.29367,3411.4,3411.3,0.29367]
[1735664043459,3.50146,3411.5,3411.4,0.29367]
[1735664045458,3.2078,3411.5,3411.4,0.29367]
[1735664045666,3.50146,3411.5,3411.4,0.29367]
[1735664045866,3.2078,3411.5,3411.0,0.463]
[1735664046070,0.29368,3411.4,3411.3,0.29367]
[1735664046273,3.50146,3411.5,3411.4,0.29367]
[1735664047069,3.2078,3411.5,3411.4,0.29367]
[1735664047462,3.50146,3411.5,3411.4,0.29367]
[1735664049265,0.29368,3411.4,3411.3,0.29367]
[1735664052069,3.2078,3411.5,3411.4,0.29366]
[1735664052070,3.50146,3411.5,3411.4,0.29366]
[1735664052269,3.2078,3411.5,3411.4,0.29366]
[1735664053270,3.50146,3411.5,3411.4,0.29366]
[1735664054070,3.2078,3411.5,3411.4,0.29366]
[1735664056570,8.06452031,3411.7,3411.6,0.29365]
[1735664056774,8.06452031,3411.7,3411.6,2.65200938]
[1735664057071,8.06452031,3411.7,3411.6,0.29365]
[1735664057869,8.35816031,3411.7,3411.6,0.29365]
[1735664061379,8.81916031,3411.7,3411.6,0.29365]
[1735664062969,0.29365,3411.6,3411.5,0.29365]
[1735664063174,8.52552031,3411.7,3411.2,0.4305]
[1735664063378,3.2078,3411.5,3411.2,0.4305]
[1735664063569,0.29367,3411.3,3411.2,0.72417]
[1735664064378,0.29367,3411.3,3411.2,0.29367]
[1735664065479,11.61798969,3411.7,3411.0,0.4305]
[1735664065480,9.25963031,3411.7,3411.0,0.4305]
[1735664065677,8.52552031,3411.7,3411.6,0.29365]
[1735664065879,8.06452031,3411.7,3411.6,0.29365]
[1735664066484,0.29364,3411.7,3411.6,0.29365]
[1735664067979,3.2078,3411.9,3411.4,0.73417]
[1735664068184,3.2078,3411.9,3411.8,0.29363]
[1735664068584,3.2078,3411.9,3411.8,0.75265366]
[1735664069382,3.2078,3411.9,3411.8,0.29363]
[1735664069582,0.7397,3412.2,3411.6,2.35835938]
[1735664069782,0.7397,3412.2,3412.1,0.2936]
[1735664070687,0.4461,3412.2,3412.1,0.2936]
[1735664071286,0.7397,3412.2,3412.1,0.2936]
[1735664071487,0.4461,3412.2,3412.1,0.2936]
[1735664073090,0.7397,3412.2,3412.1,0.2936]
[1735664073885,0.4461,3412.2,3412.1,0.2936]
[1735664074390,3.2078,3412.9,3412.3,0.29359]
[1735664074589,3.2078,3412.9,3412.8,0.29355]
[1735664077085,0.8857,3413.0,3412.5,4.0758]
[1735664077286,0.8857,3413.0,3412.9,0.29354]
[1735664077883,1.17923,3413.0,3412.9,0.29354]
[1735664078890,0.8857,3413.0,3412.9,0.29354]
[1735664080092,0.8857,3413.0,3412.7,0.29354]
[1735664080290,0.29355,3412.8,3412.7,0.29354]
[1735664080996,1.17924,3413.0,3412.9,0.29354]
[1735664082397,0.29355,3412.9,3412.8,0.29354]
[1735664083398,0.8857,3413.0,3412.5,4.0758]
[1735664083595,0.29356,3412.6,3412.0,5.56615938]
[1735664083897,0.44,3412.5,3412.4,0.29358]
[1735664084194,0.73357,3412.5,3412.4,0.29358]
[1735664086104,0.29359,3412.3,3412.2,0.29358]
[1735664086393,0.29359,3412.3,3412.0,3.2078]
[1735664086394,0.9008,3412.4,3412.0,3.2078]
[1735664086613,0.2936,3412.1,3412.0,0.2936]
[1735664086795,0.2936,3412.1,3411.7,0.29363]
[1735664086796,0.29363,3411.8,3411.7,0.29363]
[1735664087102,0.29365,3411.6,3411.5,0.73324]
[1735664087404,3.2078,3412.1,3411.5,0.4396]
[1735664087597,1.17042,3411.9,3411.8,0.29363]
[1735664089604,0.29365,3411.6,3411.5,0.73324]
[1735664089805,0.29365,3411.7,3411.6,0.29364]
[1735664093609,0.29365,3411.6,3411.5,0.73325]
[1735664094516,0.29365,3411.6,3411.5,0.4396]
[1735664094716,0.29365,3411.6,3411.5,0.73325]
[1735664095211,0.29368,3411.3,3411.2,0.29367]
[1735664095508,0.29369,3411.2,3411.1,0.29369]
[1735664095708,1.20139,3411.2,3411.1,0.29369]
[1735664096814,0.9077,3411.2,3411.1,0.29369]
[1735664097018,1.20138,3411.2,3411.1,0.29369]
[1735664097815,0.9077,3411.2,3411.1,0.29369]
[1735664098512,1.20138,3411.2,3411.1,0.29369]
[1735664099312,0.2937,3411.1,3411.0,0.29369]
[1735664099514,3.26605938,3411.2,3410.0,3.2078]
[1735664099714,3.2078,3410.8,3410.1,0.45922425]
[1735664100020,3.50152,3410.8,3410.7,0.29372]
[1735664100412,0.29373,3410.7,3410.6,0.29373]
[1735664100616,0.72903,3410.7,3410.6,0.29373]
[1735664100818,0.72902,3410.7,3410.6,0.29373]
[1735664101214,3.50152,3410.8,3410.7,0.29372]
[1735664101610,0.29376,3410.5,3410.0,4.1086]
[1735664101821,0.29376,3410.5,3410.4,0.29374]
[1735664102416,0.29374,3410.6,3410.5,0.29373]
[1735664104419,3.2078,3410.8,3410.3,0.73439]
[1735664104616,3.50152,3410.8,3410.7,0.29372]
[1735664105323,3.2078,3410.8,3410.3,0.73439]
[1735664105528,0.29373,3410.7,3410.6,0.29372]
[1735664106213,3.2078,3410.8,3410.1,0.73443]
[1735664106424,3.50152,3410.8,3410.7,0.29372]
[1735664107330,0.29375,3410.5,3410.4,0.29374]
[1735664107718,0.29373,3410.7,3410.6,0.29372]
[1735664110828,0.29375,3410.6,3410.5,0.29374]
[1735664112321,0.29376,3410.4,3410.3,0.29375]
[1735664113325,1.3317,3410.6,3410.0,5.3276]
[1735664113526,0.29378,3410.2,3410.1,0.29377]
[1735664114228,3.2078,3410.4,3409.7,0.2938]
[1735664114421,0.29381,3409.7,3409.6,0.71891]
[1735664114627,0.29387,3409.1,3409.0,0.29386]
[1735664115023,0.29387,3409.0,3408.9,0.71897]
[1735664115225,3.94707,3409.0,3408.9,0.4251]
[1735664115429,3.94707,3409.0,3408.4,0.8989]
[1735664115430,0.2939,3408.8,3408.7,0.29389]
[1735664115730,3.6532,3409.0,3408.4,0.4465]
[1735664115731,0.2939,3408.7,3408.6,0.2939]
[1735664116326,0.29391,3408.5,3408.4,0.29391]
[1735664116628,0.29392,3408.4,3408.1,3.2078]
[1735664116825,2.35835938,3408.7,3408.1,3.2078]
[1735664117128,0.29392,3408.4,3408.3,0.29393]
[1735664117327,2.35835938,3408.7,3408.1,3.2078]
[1735664117632,0.29392,3408.5,3408.4,0.29392]
[1735664118127,2.35835938,3408.7,3408.4,0.29392]
[1735664118327,2.35835938,3408.7,3408.3,0.29393]
[1735664118639,2.35835938,3408.7,3408.1,3.2078]
[1735664118825,0.29391,3408.6,3408.4,0.29392]
[1735664119128,0.29391,3408.5,3408.1,3.2078]
[1735664119426,0.29393,3408.3,3408.2,0.29393]
[1735664119629,0.29392,3408.4,3408.3,0.29392]
[1735664120530,0.29392,3408.5,3408.4,0.29392]
[1735664121229,3.2078,3408.6,3407.9,0.73492]
[1735664121430,0.29392,3408.5,3408.4,0.29392]
[1735664122631,0.29393,3408.4,3408.3,0.29393]
[1735664123036,0.29394,3408.3,3408.2,0.29394]
[1735664123331,0.29393,3408.4,3407.9,0.29397]
[1735664123629,3.2078,3408.6,3407.8,0.4465]
[1735664123827,3.2078,3408.6,3407.8,1.18142]
[1735664124032,0.29393,3408.4,3408.3,0.29393]
[1735664124233,0.29392,3408.4,3408.3,0.29393]
[1735664125234,0.29392,3408.4,3407.8,1.18143]
[1735664125235,0.29392,3408.5,3408.4,0.29392]
[1735664125531,3.2078,3408.6,3407.8,0.4465]
[1735664125731,3.2078,3408.6,3408.5,0.29391]
[1735664126131,3.5017,3408.6,3408.5,0.29391]
[1735664126433,0.29392,3408.5,3408.4,0.29392]
[1735664126825,3.50171,3408.6,3408.5,0.29391]
[1735664127424,0.29392,3408.5,3408.4,0.29392]
[1735664128737,3.2078,3408.6,3407.8,0.4465]
[1735664128938,0.29392,3408.5,3408.4,0.29391]
[1735664129135,3.2078,3408.6,3408.0,0.7349]
[1735664129332,3.2078,3408.6,3408.5,0.29391]
[1735664129738,0.2939,3408.8,3408.7,0.29389]
[1735664134738,5.56615938,3409.1,3408.4,1.219]
[1735664135138,0.29391,3408.6,3408.5,0.2939]
[1735664135537,1.61571,3408.6,3408.5,0.2939]
[1735664136142,0.4473,3408.6,3408.5,0.2939]
[1735664136738,0.8718,3409.0,3408.2,1.19594]
[1735664137045,1.324,3409.0,3408.9,0.29388]
[1735664137239,3.2078,3409.1,3409.0,0.29387]
[1735664142736,3.2078,3409.1,3409.0,0.75329473]
[1735664143143,3.2078,3409.1,3409.0,0.75329759]
[1735664143942,0.8849,3409.8,3409.0,0.45942759]
[1735664144142,3.6555,3410.0,3409.9,0.29379]
[1735664144446,3.2078,3410.0,3409.9,0.29379]
[1735664145349,3.2078,3410.5,3410.4,0.29375]
[1735664145548,0.74142,3410.8,3410.1,6.30058938]
[1735664145744,0.4477,3410.8,3410.2,0.4511]
[1735664145948,0.29374,3410.6,3410.5,0.29373]
[1735664146150,0.4477,3410.8,3410.2,0.4511]
[1735664146647,0.74142,3410.8,3410.7,0.29372]
[1735664146948,0.4477,3410.8,3410.2,0.4511]
[1735664147249,0.29373,3410.7,3410.6,0.29373]
[1735664147450,0.74142,3410.8,3410.7,0.29372]
[1735664148254,0.4477,3410.8,3410.7,0.29372]
[1735664148446,0.29374,3410.6,3410.5,0.29374]
[1735664149545,0.4477,3410.8,3410.3,0.4593]
[1735664149946,0.4477,3410.8,3410.7,0.29372]
[1735664150146,0.4477,3410.8,3410.6,0.29373]
[1735664150347,0.29373,3410.7,3410.6,0.29373]
[1735664150548,0.4477,3410.8,3410.3,0.4593]
[1735664150858,0.74141,3410.8,3410.7,0.29372]
[1735664151151,0.4477,3410.8,3410.7,0.29372]
[1735664151353,4.38641,3410.9,3410.8,0.29371]
[1735664151555,4.38641,3410.9,3410.3,1.1937]
[1735664151556,0.29372,3410.7,3410.3,0.4593]
[1735664151849,4.0927,3410.9,3410.3,0.4593]
[1735664152051,0.29372,3410.8,3410.7,0.29372]
[1735664152452,0.29373,3410.7,3410.6,0.29373]
[1735664152653,4.0927,3410.9,3410.3,0.4593]
[1735664152857,0.29372,3410.8,3410.7,0.29372]
[1735664153053,0.29373,3410.7,3410.6,0.29373]
[1735664155153,4.0927,3410.9,3410.3,0.4593]
[1735664155352,0.29372,3410.8,3410.7,0.29371]
[1735664155854,0.29373,3410.7,3410.6,0.29373]
[1735664156456,0.29373,3410.7,3410.6,0.29372]
[1735664156656,0.29372,3410.8,3410.7,0.29371]
[1735664158059,0.29373,3410.7,3410.6,0.29373]
[1735664158557,0.29372,3410.8,3410.7,0.29371]
[1735664158752,0.29371,3410.8,3410.7,0.29371]
[1735664160758,4.0927,3410.9,3410.3,0.4388]
[1735664160962,4.0927,3410.9,3410.8,0.29371]
[1735664161252,3.2078,3410.9,3410.8,0.29371]
[1735664163052,1.17408,3411.2,3410.5,3.94216]
[1735664163248,0.8804,3411.2,3411.1,0.29369]
[1735664163451,1.17408,3411.2,3411.1,0.29369]
[1735664164054,0.2937,3411.1,3411.0,0.2937]
[1735664164255,0.8804,3411.2,3410.9,0.4286]
[1735664164462,1.17409,3411.2,3411.1,0.29369]
[1735664164748,0.8804,3411.2,3410.9,0.4286]
[1735664164953,0.29371,3411.0,3410.9,0.2937]
[1735664166460,0.29372,3410.9,3410.8,0.29371]
[1735664166760,3.50151,3411.0,3410.9,0.29371]
[1735664167561,0.29371,3411.0,3410.9,0.29371]
[1735664171361,0.8804,3411.2,3410.6,1.217]
[1735664171557,0.2937,3411.1,3411.0,0.29369]
[1735664171761,1.17409,3411.2,3411.1,0.29369]
[1735664173161,0.8804,3411.2,3411.1,0.29369]
[1735664174362,1.17408,3411.2,3411.1,0.29369]
[1735664175565,0.8804,3411.2,3411.1,0.29369]
[1735664175961,1.17408,3411.2,3411.1,0.29369]
[1735664176367,0.8804,3411.2,3411.1,0.29369]
[1735664176572,3.2078,3411.4,3411.3,0.29367]
[1735664176962,3.50146,3411.4,3411.3,0.29367]
[1735664177162,3.2078,3411.4,3411.3,0.29367]
[1735664177976,3.50146,3411.4,3411.3,0.29367]
[1735664179267,0.29368,3411.3,3411.2,0.29368]
[1735664179669,0.29369,3411.2,3411.1,0.29368]
[1735664179860,0.72959,3411.2,3411.1,0.29368]
[1735664180268,0.72958,3411.2,3411.1,0.29368]
[1735664181669,0.4359,3411.2,3411.1,0.29368]
[1735664182071,3.50147,3411.4,3411.3,0.29367]
[1735664182271,0.4427,3411.6,3411.5,0.29365]
[1735664182664,0.73635,3411.6,3411.5,0.29365]
[1735664183967,0.4427,3411.6,3411.5,0.29365]
[1735664184163,0.884,3411.7,3411.2,0.73419]
[1735664184469,3.2078,3411.9,3411.8,0.29363]
[1735664185169,0.29362,3412.0,3411.9,0.29361]
[1735664185568,0.29362,3412.0,3411.9,0.29362]
[1735664186680,1.301,3412.3,3411.6,0.9077]
[1735664186977,0.29362,3412.0,3411.9,0.29361]
[1735664187580,0.29363,3411.8,3411.7,0.29362]
[1735664187774,0.29362,3411.9,3411.8,0.29362]
[1735664188274,3.2078,3412.0,3411.6,0.4449]
[1735664188477,0.71733,3411.8,3411.7,0.29363]
[1735664188977,0.4237,3411.8,3411.7,0.29363]
[1735664189381,0.71733,3411.8,3411.7,0.29363]
[1735664189770,0.71733,3411.8,3411.0,3.2078]
[1735664189771,1.15778,3411.8,3411.0,3.2078]
[1735664190079,3.2078,3411.4,3411.3,0.29367]
[1735664190280,0.4613,3411.7,3411.6,0.29365]
[1735664191190,0.75494,3411.7,3411.6,0.29365]
[1735664191376,0.4613,3411.7,3411.6,0.29365]
[1735664191582,0.4613,3411.7,3411.3,0.4347]
[1735664191780,0.75494,3411.7,3411.6,0.29365]
[1735664192878,0.29364,3411.7,3411.6,0.29365]
[1735664193079,0.4237,3411.8,3411.3,1.16887]
[1735664193279,0.4237,3411.8,3411.7,0.29364]
[1735664193486,0.29362,3412.0,3411.9,0.29362]
[1735664193687,0.72601,3412.1,3412.0,0.29361]
[1735664193889,0.4262,3412.2,3411.6,2.35835938]
[1735664194087,0.4324,3412.5,3411.7,0.4585]
[1735664194285,3.2078,3412.8,3412.7,0.29355]
[1735664194688,9.39963142,3413.0,3412.4,1.94994]
[1735664194887,9.10610142,3413.0,3412.4,1.94994]
[1735664195192,9.10610142,3413.0,3412.9,0.29353]
[1735664195393,0.29352,3413.0,3412.9,0.29353]
[1735664195589,11.38262678,3413.1,3412.5,0.29357]
[1735664195787,0.29355,3412.8,3412.6,0.29355]
[1735664196286,9.18787331,3412.9,3412.4,1.216]